bitfinex/quotes_ETHUSD_20260227
["timestamp","ask_amount","ask_price","bid_price","bid_amount"]
[1772206067763,0.001,1953.6,1952.7,1.14674949]
[1772206068773,0.001,1953.6,1953.0,1.14674949]
[1772206069580,2.41519824,1954.3,1953.3,1.14674949]
[1772206070285,1.13595648,1954.0,1953.0,1.14828835]
[1772206070486,1.182,1953.9,1953.0,1.14828835]
[1772206070684,1.182,1953.9,1953.0,0.00153886]
[1772206070685,2.57631425,1953.8,1953.0,0.00153886]
[1772206070884,1.27955778,1953.8,1953.0,0.00153886]
[1772206071591,2.41551426,1953.8,1953.0,0.00153886]
[1772206071761,1.13595648,1953.7,1953.0,0.00153886]
[1772206072858,1.13595648,1953.5,1953.0,0.00153886]
[1772206073058,1.182,1953.4,1953.0,0.00153886]
[1772206073802,1.182,1953.4,1952.2,1.28060649]
[1772206073803,3.71227073,1953.2,1952.2,1.28060649]
[1772206074292,1.13595648,1953.1,1952.2,1.28060649]
[1772206074860,1.28008192,1953.0,1952.2,1.28060649]
[1772206075064,1.182,1952.9,1952.2,1.28060649]
[1772206076196,1.182,1952.9,1952.1,1.28063389]
[1772206077502,1.28021302,1952.8,1952.1,1.28063389]
[1772206078100,1.28021302,1952.8,1952.1,2.42738338]
[1772206078682,1.28021302,1952.8,1952.2,1.14674949]
[1772206079577,1.28021302,1952.8,1952.2,2.42732201]
[1772206080203,1.28021302,1952.8,1952.1,5.12267297]
[1772206080374,1.28021302,1952.8,1952.0,6.27110134]
[1772206080720,4.10556033,1953.9,1952.0,6.27110134]
[1772206080721,1.13595648,1953.5,1952.1,1.14674949]
[1772206080885,0.00153886,1954.0,1952.6,1.14674949]
[1772206081203,1.183,1953.7,1952.8,1.14674949]
[1772206081380,5.11939888,1954.0,1952.9,1.14674949]
[1772206081381,1.28099902,1954.0,1952.9,1.14674949]
[1772206081582,1.182,1953.8,1953.1,1.14674949]
[1772206081905,2.46156559,1953.8,1953.1,1.14674949]
[1772206082198,1.182,1953.8,1953.1,1.14674949]
[1772206082423,2.46158941,1953.8,1953.1,1.14674949]
[1772206082908,1.182,1953.8,1953.1,1.14674949]
[1772206083090,2.46156148,1953.8,1953.1,1.14674949]
[1772206083716,3.59751796,1953.8,1952.7,1.13740032]
[1772206083886,3.71227073,1953.6,1952.5,2.42715922]
[1772206084205,10.36796648,1953.5,1952.5,1.14674949]
[1772206084392,1.183,1953.4,1952.5,1.14674949]
[1772206084784,1.183,1953.4,1952.3,0.0011]
[1772206084785,1.13595648,1953.2,1952.3,0.0011]
[1772206085781,1.28001638,1953.1,1952.3,0.0011]
[1772206087219,1.28001638,1953.1,1952.3,1.14784949]
[1772206087405,3.71227073,1953.0,1952.3,0.0011]
[1772206087721,1.28021302,1952.8,1952.3,0.0011]
[1772206090096,1.2801758,1952.9,1952.3,1.20422695]
[1772206091622,1.2801758,1952.9,1952.3,0.0011]
[1772206091889,5.12037417,1953.0,1952.3,0.0011]
[1772206093383,5.12037417,1953.0,1952.0,0.00263886]
[1772206093384,2.57631425,1952.5,1952.0,0.00263886]
[1772206093620,1.186,1952.4,1952.0,0.00263886]
[1772206094124,1.2805409,1952.3,1952.0,0.00263886]
[1772206094290,6.30803031,1952.4,1952.0,0.00263886]
[1772206094291,1.186,1952.4,1952.0,0.00263886]
[1772206094831,2.46648232,1952.4,1952.0,0.00263886]
[1772206095234,1.186,1952.4,1952.0,0.00263886]
[1772206095395,1.186,1952.4,1952.0,1.20576581]
[1772206095597,1.186,1952.4,1952.1,0.0011]
[1772206096434,2.46649939,1952.4,1952.1,0.0011]
[1772206097417,5.121124,1952.7,1952.1,1.20422695]
[1772206097418,1.188,1952.7,1952.1,1.20422695]
[1772206097616,2.57631425,1953.3,1952.1,1.20422695]
[1772206097617,1.2798198,1953.4,1952.1,1.20422695]
[1772206097795,1.188,1953.2,1952.1,1.20422695]
[1772206098421,2.46799831,1953.2,1952.2,1.28060649]
[1772206098618,2.46799831,1953.2,1952.3,1.20312695]
[1772206098821,1.2798207,1953.4,1952.3,1.20312695]
[1772206099322,1.2798207,1953.4,1952.4,1.20312695]
[1772206100517,1.2798207,1953.4,1952.5,1.28040973]
[1772206100818,1.2798207,1953.4,1952.5,2.48353668]
[1772206101792,1.2798207,1953.4,1952.5,1.20312695]
[1772206101996,2.44606044,1953.4,1952.5,1.20312695]
[1772206102921,2.44606044,1953.4,1952.5,2.48352764]
[1772206103519,1.16623974,1953.2,1952.2,1.20312695]
[1772206103819,2.57631425,1953.0,1952.2,2.48372209]
[1772206103994,2.35523974,1953.1,1952.2,2.48372209]
[1772206104194,2.35523974,1953.1,1952.2,1.20312695]
[1772206104405,2.35523974,1953.1,1952.3,1.20312695]
[1772206104603,1.189,1953.1,1952.3,1.20312695]
[1772206105622,1.28008192,1953.0,1952.4,1.28047531]
[1772206105829,1.28008192,1953.0,1952.4,2.48360226]
[1772206107025,1.28008192,1953.0,1952.4,1.20312695]
[1772206107599,1.28008192,1953.0,1952.4,2.4835902]
[1772206107798,1.28008192,1953.0,1952.4,1.20312695]
[1772206108520,1.28008192,1953.0,1952.4,2.48359088]
[1772206113243,1.28008192,1953.0,1952.2,0.0011]
[1772206113244,3.00550449,1952.8,1952.2,0.0011]
[1772206113448,4.95861142,1953.0,1952.0,0.00263886]
[1772206113449,1.83926475,1952.6,1952.0,0.00263886]
[1772206113742,3.00550449,1952.4,1951.7,2.48406133]
[1772206113917,1.192,1952.3,1951.7,2.48406133]
[1772206114319,1.192,1952.3,1951.7,1.20312695]
[1772206114821,1.28060649,1952.2,1951.7,1.20312695]
[1772206115722,5.12108235,1952.8,1951.8,1.20422695]
[1772206115723,5.12153191,1952.6,1951.8,1.20422695]
[1772206116852,5.12153191,1952.6,1951.8,2.4850853]
[1772206117836,6.28777165,1952.6,1951.8,2.4850853]
[1772206119050,1.83926475,1952.5,1951.8,2.4850853]
[1772206119549,6.28777165,1952.6,1951.8,2.4850853]
[1772206121133,6.28777165,1952.6,1951.8,0.0011]
[1772206121342,1.28168252,1953.0,1952.1,1.09891779]
[1772206121535,1.195,1952.9,1952.1,1.09891779]
[1772206122926,1.195,1952.9,1952.0,1.83926475]
[1772206122927,1.19653886,1953.0,1952.5,1.09891779]
[1772206123329,0.001,1953.1,1952.7,1.09891779]
[1772206123864,1.28101969,1953.1,1952.7,1.09891779]
[1772206124129,1.28101969,1953.1,1952.5,2.3793182]
[1772206124272,1.28101969,1953.1,1952.6,1.09891779]
[1772206124636,0.001,1953.1,1952.6,1.09891779]
[1772206124842,1.195,1953.0,1952.6,1.09891779]
[1772206125967,1.195,1953.0,1952.7,1.28027858]
[1772206126273,1.195,1953.0,1952.7,2.37919637]
[1772206126686,1.195,1953.0,1952.7,1.09891779]
[1772206127667,1.195,1953.0,1952.6,1.28034175]
[1772206127865,1.195,1953.0,1952.5,6.22054737]
[1772206128898,1.195,1953.0,1952.6,1.09891779]
[1772206129048,0.001,1953.1,1952.6,1.09891779]
[1772206129450,1.28102161,1953.1,1952.6,1.09891779]
[1772206129762,0.001,1953.1,1952.6,1.09891779]
[1772206129957,1.28102801,1953.1,1952.6,2.37921829]
[1772206130172,0.001,1953.1,1952.6,2.37921829]
[1772206130379,1.28062433,1953.7,1952.9,1.09891779]
[1772206130546,1.28063392,1953.7,1952.9,1.09891779]
[1772206130751,0.001,1953.7,1952.9,1.09891779]
[1772206131353,1.28062593,1953.7,1952.9,1.09891779]
[1772206131555,1.18110951,1953.5,1952.6,2.37921829]
[1772206131780,1.195,1953.4,1952.7,1.09891779]
[1772206131986,1.195,1953.4,1952.9,1.09891779]
[1772206133981,2.47482966,1953.4,1952.9,2.37901174]
[1772206134278,2.47482966,1953.4,1952.7,5.12096997]
[1772206134490,1.18110951,1953.2,1952.6,1.28033297]
[1772206134776,1.18110951,1953.2,1952.4,6.22067409]
[1772206134955,1.18110951,1953.2,1952.5,1.09891779]
[1772206135280,1.18110951,1953.2,1952.6,0.0011]
[1772206135678,2.4758233,1953.4,1952.6,1.10001779]
[1772206135882,1.196,1953.4,1952.6,1.10001779]
[1772206136059,1.196,1953.4,1952.7,2.37919637]
[1772206136263,1.196,1953.4,1952.8,1.09891779]
[1772206137176,1.195,1953.6,1952.8,1.09891779]
[1772206137557,2.46063502,1953.9,1952.8,1.09891779]
[1772206138158,2.46063502,1953.9,1953.0,1.09891779]
[1772206139752,1.18110951,1953.8,1953.0,1.09891779]
[1772206139962,1.83926475,1953.7,1952.9,1.28014747]
[1772206140163,3.65479828,1953.6,1952.8,5.12058989]
[1772206140482,3.65479828,1953.6,1952.8,6.21950768]
[1772206141387,2.37510951,1953.6,1952.8,6.21950768]
[1772206141761,3.65480408,1953.6,1952.9,1.09891779]
[1772206141967,3.6548034,1953.6,1952.9,1.09891779]
[1772206142274,3.6548034,1953.6,1953.0,1.28008192]
[1772206143077,1.18110951,1953.5,1952.6,1.10001779]
[1772206143287,1.18110951,1953.5,1952.7,5.12099648]
[1772206143478,1.18110951,1953.5,1952.7,1.28027858]
[1772206144379,1.18110951,1953.5,1952.6,0.0011]
[1772206144380,1.18110951,1953.0,1952.6,0.0011]
[1772206144581,1.83926475,1953.1,1952.5,0.0011]
[1772206144582,1.18110951,1952.8,1952.5,0.0011]
[1772206144778,1.18110951,1952.7,1952.0,0.00153886]
[1772206145091,1.195,1952.9,1951.8,0.0011]
[1772206145092,3.02037426,1952.2,1951.8,0.0011]
[1772206145273,4.21537426,1952.2,1951.8,0.0011]
[1772206145462,2.37610951,1952.2,1951.8,0.0011]
[1772206146293,2.37610951,1952.2,1951.6,0.0011]
[1772206146294,1.28086894,1951.8,1951.6,0.0011]
[1772206146471,1.18110951,1951.9,1951.6,0.0011]
[1772206146667,3.03426475,1952.2,1951.6,0.0011]
[1772206146668,2.46176824,1952.2,1951.6,0.0011]
[1772206146858,1.195,1952.1,1951.6,0.0011]
[1772206147366,3.65652022,1952.5,1951.6,0.0011]
[1772206148369,1.195,1952.5,1951.7,2.37985235]
[1772206148573,2.4754143,1952.5,1951.7,2.38095235]
[1772206148981,1.2804143,1952.5,1951.7,2.38095235]
[1772206149191,2.4754143,1952.5,1951.7,2.38095235]
[1772206149489,1.18110951,1952.3,1951.7,0.0011]
[1772206150282,1.28060649,1952.2,1951.7,0.0011]
[1772206152107,1.196,1952.1,1951.7,0.0011]
[1772206152506,1.196,1952.1,1951.6,0.0011]
[1772206152507,1.17366384,1952.0,1951.6,0.0011]
[1772206152696,1.17366384,1951.9,1951.4,0.0011]
[1772206152906,1.17366384,1951.9,1951.3,0.0011]
[1772206152907,3.01292859,1951.5,1951.2,0.0011]
[1772206153233,3.01292859,1951.5,1951.0,1.28401363]
[1772206153234,1.197,1951.4,1951.0,1.28401363]
[1772206153395,1.197,1951.4,1951.0,0.00263886]
[1772206153580,2.37066384,1951.6,1951.0,0.00263886]
[1772206153781,3.01292859,1951.4,1951.0,0.00263886]
[1772206154208,1.17366384,1951.4,1951.0,0.00263886]
[1772206154602,2.45480129,1951.4,1951.0,0.00263886]
[1772206154980,2.55514464,1951.8,1951.0,0.00263886]
[1772206154981,2.45442616,1952.0,1951.0,1.11881993]
[1772206155187,2.45440633,1952.0,1951.1,1.11618107]
[1772206155382,1.83926475,1951.9,1951.1,1.11618107]
[1772206155588,1.17366384,1951.7,1951.0,0.00263886]
[1772206156807,2.47791435,1951.8,1951.0,1.11881993]
[1772206157204,1.17366384,1951.7,1951.0,0.00263886]
[1772206157404,3.01292859,1951.6,1951.0,0.00263886]
[1772206157605,1.17366384,1951.6,1951.0,0.00263886]
[1772206157813,1.28091435,1951.8,1951.0,1.11881993]
[1772206158116,1.197,1951.7,1951.0,1.11881993]
[1772206159214,2.47793926,1951.7,1951.1,1.28132848]
[1772206159717,2.47793986,1951.7,1951.1,1.28132848]
[1772206159916,2.47793986,1951.7,1951.0,2.40016465]
[1772206160287,1.197,1951.7,1951.0,2.40016465]
[1772206160485,2.47794048,1951.7,1951.0,2.40016465]
[1772206160689,2.47794048,1951.7,1951.0,1.28398358]
[1772206160690,3.65160432,1951.7,1951.0,1.28398358]
[1772206161215,3.65160432,1951.7,1951.0,0.00263886]
[1772206161718,3.65160432,1951.7,1951.1,0.0011]
[1772206161920,3.65260432,1951.7,1951.1,0.0011]
[1772206163117,1.17366384,1951.6,1951.1,0.0011]
[1772206163418,1.28106584,1951.5,1951.1,0.0011]
[1772206165095,3.03726475,1951.7,1951.1,0.0011]
[1772206165096,2.47896447,1951.7,1951.1,0.0011]
[1772206165326,3.65262831,1951.7,1951.1,0.0011]
[1772206165535,0.001,1951.7,1951.1,1.11728107]
[1772206165725,1.202,1951.7,1951.1,1.11728107]
[1772206166837,5.49586685,1951.7,1951.1,0.0011]
[1772206167315,3.6566021,1951.7,1951.1,0.0011]
[1772206167709,1.17366384,1951.6,1951.1,0.0011]
[1772206167935,1.17366384,1951.4,1950.8,1.2825826]
[1772206168130,1.201,1951.3,1950.8,1.2825826]
[1772206169526,1.201,1951.3,1950.8,0.0011]
[1772206169733,2.48224325,1951.3,1950.8,0.0011]
[1772206170224,1.17366384,1951.2,1950.8,0.0011]
[1772206170405,1.17366384,1951.1,1950.7,0.0011]
[1772206171630,3.01292859,1950.9,1950.5,0.0011]
[1772206171810,2.48452552,1950.8,1950.5,0.0011]
[1772206172005,1.203,1950.8,1950.5,0.0011]
[1772206172639,1.203,1950.8,1950.5,1.11728107]
[1772206173008,2.45494834,1951.2,1950.5,1.11728107]
[1772206173229,1.203,1951.0,1950.5,1.11728107]
[1772206173512,1.203,1951.0,1950.5,0.0011]
[1772206174214,2.45502583,1951.1,1950.6,0.0011]
[1772206174422,1.203,1951.0,1950.6,0.0011]
[1772206176436,2.37666384,1951.0,1950.6,0.0011]
[1772206177431,2.48440774,1951.0,1950.6,0.0011]
[1772206177728,1.203,1951.0,1950.6,0.0011]
[1772206178142,2.48439587,1951.0,1950.6,0.0011]
[1772206178452,1.203,1951.0,1950.6,0.0011]
[1772206181432,1.14161034,1950.8,1950.4,0.0011]
[1772206181642,1.14161034,1950.8,1950.0,1.28356193]
[1772206182754,1.14161034,1950.8,1950.0,2.4036908]
[1772206183048,1.28159122,1950.7,1950.0,2.4036908]
[1772206183349,1.206,1950.6,1950.0,2.4036908]
[1772206184723,2.34761034,1950.6,1950.0,2.4036908]
[1772206185126,3.62931514,1950.6,1950.0,2.4036908]
[1772206186048,2.34761034,1950.6,1950.0,2.4036908]
[1772206186253,1.206,1950.6,1950.1,0.0011]
[1772206186438,1.206,1950.6,1950.1,1.12122887]
[1772206187147,1.206,1950.6,1950.2,1.2819198]
[1772206187659,0.001,1950.7,1950.2,1.2819198]
[1772206187856,0.001,1950.7,1950.3,1.12012887]
[1772206189358,0.001,1950.7,1950.4,1.28178835]
[1772206189534,2.34761034,1951.2,1950.5,1.12012887]
[1772206189740,3.628678,1951.5,1950.6,1.12012887]
[1772206189942,1.14161034,1951.4,1950.6,1.12012887]
[1772206190763,1.14161034,1951.4,1950.4,1.28178835]
[1772206190941,1.14161034,1951.4,1950.4,2.27578835]
[1772206191268,1.14161034,1951.4,1950.4,3.39591722]
[1772206191454,1.28118395,1951.4,1950.5,1.12012887]
[1772206191635,2.42279429,1951.4,1950.5,1.12012887]
[1772206193049,1.14161034,1951.4,1950.6,1.12012887]
[1772206193749,0.001,1951.7,1951.2,1.12012887]
[1772206194277,1.205,1952.4,1951.2,1.12012887]
[1772206194278,0.00153886,1953.0,1951.6,8.85604176]
[1772206194566,1.14161034,1954.1,1952.6,1.12012887]
[1772206194567,1.14161034,1953.8,1952.6,1.12012887]
[1772206194773,2.24023533,1953.8,1953.2,1.8155]
[1772206194944,0.831,1953.8,1953.3,1.8155]
[1772206195144,0.831,1953.8,1952.8,3.6987665]
[1772206195145,0.831,1953.8,1953.4,1.8155]
[1772206195371,0.831,1953.8,1953.6,1.8155]
[1772206195560,0.831,1953.8,1953.4,1.8155]
[1772206195943,0.831,1953.8,1953.4,3.09531927]
[1772206196142,0.831,1953.8,1953.4,3.09531832]
[1772206196836,0.831,1953.8,1953.4,1.8155]
[1772206198569,0.00153886,1954.0,1953.4,3.09531939]
[1772206198868,1.28097274,1954.0,1953.4,1.8155]
[1772206199076,0.00153886,1954.0,1953.4,3.0952916]
[1772206199381,1.28097066,1954.0,1953.4,1.8155]
[1772206199549,0.001,1953.7,1953.4,1.8155]
[1772206199949,0.001,1953.7,1953.4,3.09531843]
[1772206200447,0.00153886,1954.0,1953.6,1.8155]
[1772206200667,0.00153886,1954.0,1953.3,1.12012887]
[1772206200872,1.1431492,1954.0,1953.3,1.8155]
[1772206201252,2.3451492,1954.0,1953.3,1.8155]
[1772206201954,2.3451492,1954.0,1953.1,0.74071614]
[1772206201955,1.14161034,1953.8,1953.1,0.74071614]
[1772206202294,1.14161034,1953.6,1952.4,3.39655443]
[1772206202461,1.14161034,1953.4,1952.4,3.23055443]
[1772206202660,1.14161034,1953.4,1952.7,0.740717]
[1772206203645,1.14161034,1953.4,1952.5,0.740717]
[1772206203874,1.14161034,1953.3,1952.5,0.740717]
[1772206204089,1.27995084,1953.2,1952.5,1.28037558]
[1772206204372,1.27995084,1953.2,1952.5,0.470529]
[1772206204581,10.55041928,1953.5,1952.5,1.12012887]
[1772206204753,1.201,1953.4,1952.5,1.12012887]
[1772206204955,1.201,1953.4,1952.7,0.470529]
[1772206206151,2.48087341,1953.4,1952.7,1.75080221]
[1772206206359,2.48087341,1953.4,1952.7,1.28027321]
[1772206206863,1.201,1953.4,1952.7,2.40040208]
[1772206207173,2.48082487,1953.4,1952.7,2.40040208]
[1772206207375,2.48082487,1953.4,1952.7,2.87093108]
[1772206207886,2.48082487,1953.4,1952.2,5.12194257]
[1772206207887,1.14161034,1953.2,1952.2,2.40071228]
[1772206208187,1.28001638,1953.1,1952.2,2.40071228]
[1772206208482,1.28001638,1953.1,1952.0,0.00153886]
[1772206208483,2.57863763,1952.7,1952.0,0.00153886]
[1772206208669,2.25474271,1952.8,1952.0,0.00153886]
[1772206208877,3.63162835,1952.5,1952.0,0.00153886]
[1772206209260,1.05299072,1952.5,1952.0,0.00153886]
[1772206210157,1.28047531,1952.4,1952.0,0.00153886]
[1772206211254,1.28031617,1952.7,1952.1,1.13338123]
[1772206211470,6.32301199,1952.8,1952.1,1.13338123]
[1772206211471,2.4822148,1952.8,1952.1,1.13338123]
[1772206211976,2.4482148,1952.8,1952.1,1.13448123]
[1772206212182,1.168,1952.8,1952.2,2.41398772]
[1772206212485,1.168,1952.8,1952.3,1.13338123]
[1772206212656,2.48297506,1953.2,1952.3,1.13338123]
[1772206214071,2.48297506,1953.2,1952.4,1.28047531]
[1772206214289,2.48297506,1953.2,1952.4,2.41385654]
[1772206214494,0.001,1953.3,1952.5,1.13338123]
[1772206215480,1.28089503,1953.3,1952.5,1.13338123]
[1772206215978,1.28088758,1953.3,1952.5,1.13338123]
[1772206216178,0.001,1953.3,1952.6,2.41372538]
[1772206217307,3.63371327,1954.2,1952.7,1.13338123]
[1772206217489,1.28100662,1954.0,1952.8,1.13338123]
[1772206218401,1.28100662,1954.0,1953.0,1.13338123]
[1772206218587,1.28100662,1954.0,1953.1,1.13338123]
[1772206219280,2.57863763,1953.9,1953.1,1.13338123]
[1772206219475,2.3374972,1954.0,1953.1,1.13338123]
[1772206219902,1.05671093,1953.9,1952.9,1.28014747]
[1772206220105,1.05671093,1953.8,1952.9,1.28014747]
[1772206220322,2.57863763,1953.4,1952.3,1.13338123]
[1772206220609,2.3363997,1953.6,1952.1,1.28172098]
[1772206220610,3.63534856,1953.1,1952.1,1.28172098]
[1772206221789,3.63534856,1953.1,1952.1,1.28176304]
[1772206222385,1.05713052,1952.9,1952.1,0.0011]
[1772206222586,1.28008192,1953.0,1952.1,0.0011]
[1772206222587,3.63576815,1952.7,1952.1,0.0011]
[1772206222975,1.201,1952.8,1952.1,0.0011]
[1772206223180,1.27968877,1953.6,1952.2,1.13338123]
[1772206223181,2.4808198,1953.4,1952.2,1.13338123]
[1772206223485,1.201,1953.4,1952.2,1.13338123]
[1772206223878,1.201,1953.4,1952.4,1.13338123]
[1772206224607,2.48086588,1953.4,1952.6,1.13338123]
[1772206225407,2.48086588,1953.4,1952.5,1.28040973]
[1772206225620,2.48082967,1953.4,1952.6,1.13338123]
[1772206225822,1.1232824,1953.8,1952.6,1.13338123]
[1772206225823,1.27962327,1953.8,1952.6,1.13338123]
[1772206226382,1.27962327,1953.8,1952.6,2.12738123]
[1772206226596,1.27962327,1953.8,1952.8,1.13338123]
[1772206226904,2.57863763,1953.7,1952.8,1.13338123]
[1772206227279,2.57863763,1953.4,1952.4,2.41382084]
[1772206227485,1.201,1953.3,1952.4,1.13338123]
[1772206228310,1.201,1953.3,1952.4,2.4138472]
[1772206228693,1.27995084,1953.2,1952.4,1.13338123]
[1772206228896,1.27995084,1953.2,1952.4,2.41384998]
[1772206230099,1.27995084,1953.2,1952.4,2.4138534]
[1772206231090,2.57863763,1952.9,1952.2,1.28170207]
[1772206231289,1.05616821,1953.1,1952.2,0.0011]
[1772206231492,1.05616821,1953.1,1952.2,1.28170605]
[1772206231812,1.05616821,1953.1,1952.2,0.0011]
[1772206232299,3.63229759,1952.9,1952.2,0.0011]
[1772206232506,5.15727526,1953.0,1952.2,0.0011]
[1772206232507,2.57863763,1952.7,1952.2,0.0011]
[1772206232701,2.25365996,1952.8,1952.2,0.0011]
[1772206232913,2.57863763,1952.5,1952.0,0.00263886]
[1772206233086,1.28047531,1952.4,1952.0,0.00263886]
[1772206233502,5.12149256,1952.6,1952.0,0.00263886]
[1772206235115,1.28034415,1952.7,1952.0,0.00263886]
[1772206235418,1.202,1953.1,1952.0,1.13602009]
[1772206235616,1.83828507,1953.0,1952.0,1.13602009]
[1772206237000,1.202,1953.1,1952.0,1.13602009]
[1772206237392,1.28008192,1953.0,1952.1,2.41405332]
[1772206237597,1.28008192,1953.0,1952.2,1.13338123]
[1772206238303,0.001,1952.9,1952.2,1.13338123]
[1772206239721,0.001,1952.9,1952.2,2.41393348]
[1772206240021,2.86734842,1952.7,1952.1,0.0011]
[1772206240219,1.202,1952.6,1952.1,0.0011]
[1772206241328,1.202,1952.5,1952.1,0.0011]
[1772206242192,2.48241885,1952.5,1952.1,0.0011]
[1772206242593,5.12181639,1952.9,1952.1,1.11642253]
[1772206242822,0.001,1952.9,1952.1,1.11642253]
[1772206243320,0.001,1952.9,1952.3,1.11532253]
[1772206243532,1.203,1953.1,1952.3,1.11532253]
[1772206243892,1.203,1953.1,1952.4,1.28047531]
[1772206244118,1.203,1953.1,1952.5,1.11532253]
[1772206245824,6.95744519,1953.5,1952.5,1.11532253]
[1772206246031,2.48178739,1953.5,1952.7,1.11532253]
[1772206246198,1.202,1953.5,1952.7,1.11532253]
[1772206246527,0.001,1953.9,1952.9,1.11532253]
[1772206246732,0.001,1953.9,1953.0,1.11532253]
[1772206247031,1.28050502,1953.9,1953.0,1.11532253]
[1772206248529,1.28050502,1953.9,1953.1,1.28001638]
[1772206248827,1.28050502,1953.9,1953.1,2.39533891]
[1772206249522,1.28050502,1953.9,1953.1,1.11532253]
[1772206249839,1.01012003,1953.6,1952.6,2.39566668]
[1772206250129,2.84643194,1953.4,1952.3,2.10732253]
[1772206250326,2.84643194,1953.4,1952.4,1.11532253]
[1772206251216,1.27988532,1953.3,1952.5,1.28040973]
[1772206251613,1.27988532,1953.3,1952.5,2.39573226]
[1772206252331,1.201,1953.5,1952.6,1.11532253]
[1772206252517,1.201,1953.5,1952.7,1.11532253]
[1772206252826,1.201,1953.5,1952.5,1.28040973]
[1772206252827,0.001,1953.8,1953.0,1.11532253]
[1772206253325,0.001,1953.8,1953.2,1.11532253]
[1772206253735,0.001,1953.8,1953.2,2.9536076]
[1772206253935,0.001,1953.8,1953.3,1.11532253]
[1772206254306,0.001,1953.9,1953.3,1.11532253]
[1772206254307,0.00153886,1954.0,1953.5,1.11532253]
[1772206254809,0.017928,1954.4,1953.5,1.11532253]
[1772206255320,1.29709853,1954.4,1953.7,1.11532253]
[1772206255632,0.99954236,1954.1,1953.0,2.39687777]
[1772206255800,2.19754236,1954.1,1953.1,5.11998549]
[1772206256217,2.19754236,1954.1,1953.1,6.23530802]
[1772206256616,0.99954236,1954.1,1953.1,6.23530802]
[1772206256909,2.19754236,1954.1,1953.1,6.23530802]
[1772206259334,1.27942681,1954.0,1953.1,7.23030802]
[1772206259636,2.47736134,1954.1,1953.2,1.11532253]
[1772206259933,1.198,1954.1,1953.2,1.11532253]
[1772206260430,4.10803097,1954.3,1953.2,1.11532253]
[1772206260612,4.10803097,1954.3,1953.3,0.995]
[1772206260812,0.9904777,1954.2,1953.2,1.11532253]
[1772206261113,1.27936134,1954.1,1953.3,1.27988532]
[1772206261439,1.27936134,1954.1,1953.2,2.39522713]
[1772206262032,2.2663475,1954.1,1953.2,1.11532253]
[1772206262233,2.2663475,1954.1,1953.1,1.28000821]
[1772206262234,0.98698616,1953.9,1953.1,1.28000821]
[1772206262738,1.83828507,1953.7,1953.0,1.28270791]
[1772206262914,0.98698616,1953.8,1953.0,1.28270791]
[1772206263130,1.27968877,1953.6,1953.0,0.00263886]
[1772206263641,1.27957291,1953.8,1953.0,1.11796139]
[1772206264127,1.27957291,1953.8,1953.0,0.00263886]
[1772206265352,0.001,1953.9,1953.0,1.11796139]
[1772206265567,0.001,1953.9,1953.3,1.11532253]
[1772206265730,0.001,1953.9,1953.4,1.11532253]
[1772206266460,1.2971162,1954.4,1953.4,1.11532253]
[1772206267132,1.83828507,1954.3,1953.4,1.11532253]
[1772206267650,1.27929587,1954.2,1953.5,2.39507681]
[1772206267853,1.83828507,1954.0,1953.1,2.39533891]
[1772206268351,3.03528507,1954.0,1953.1,2.39533891]
[1772206269650,1.27949229,1953.9,1953.1,2.39533891]
[1772206270559,1.27949229,1953.9,1953.0,0.00263886]
[1772206270560,1.83828507,1953.7,1953.0,0.00263886]
[1772206270856,4.52095711,1953.9,1953.0,1.28270719]
[1772206270857,6.35924218,1953.9,1953.0,1.28270719]
[1772206271066,5.38601471,1953.9,1953.0,1.28270719]
[1772206271238,1.27949229,1953.9,1953.1,1.13955512]
[1772206271445,3.11777736,1953.9,1953.1,1.13955512]
[1772206271642,3.11777736,1953.9,1953.1,1.11744535]
[1772206271850,3.11777736,1953.9,1953.1,2.3974175]
[1772206272829,3.11777736,1953.9,1953.1,1.11744535]
[1772206273035,4.10856894,1953.9,1953.0,0.00263886]
[1772206273236,1.83828507,1953.6,1953.0,0.00263886]
[1772206274153,2.47675428,1953.5,1953.0,0.00263886]
[1772206274395,3.46607551,1953.5,1953.0,0.00263886]
[1772206274946,1.83828507,1953.3,1952.7,0.0011]
[1772206275459,3.46607551,1953.5,1952.7,0.0011]
[1772206275460,1.83828507,1953.1,1952.7,0.0011]
[1772206276464,1.83828507,1953.1,1953.0,0.0011]
[1772206276465,1.28001638,1953.1,1953.0,0.0011]
[1772206276649,6.31741113,1953.4,1953.0,0.0011]
[1772206277042,1.198,1953.4,1953.0,0.0011]
[1772206277837,1.27972652,1953.6,1953.0,0.0011]
[1772206278748,1.83828507,1953.5,1952.8,0.0011]
[1772206279063,1.2,1953.4,1952.8,1.28130164]
[1772206279263,1.2,1953.4,1952.8,0.0011]
[1772206280558,1.27988532,1953.3,1952.8,0.0011]
[1772206281344,2.47982387,1953.4,1952.8,0.0011]
[1772206281550,2.47982387,1953.4,1952.3,1.13955512]
[1772206281551,1.83828507,1953.0,1952.3,1.13955512]
[1772206281750,3.03928507,1953.0,1952.3,1.13955512]
[1772206281953,3.03928507,1953.0,1952.3,2.42009502]
[1772206282151,3.03928507,1953.0,1952.3,1.13955512]
[1772206282559,3.03928507,1953.0,1952.1,0.0011]
[1772206282560,1.28014747,1952.9,1952.1,0.0011]
[1772206283070,1.28014747,1952.9,1952.1,1.28174492]
[1772206283647,1.28014747,1952.9,1952.2,1.13955512]
[1772206284555,1.201,1953.0,1952.2,2.42012835]
[1772206284872,1.201,1953.0,1952.2,1.13955512]
[1772206285074,1.83828507,1952.8,1952.1,0.0011]
[1772206285259,1.83828507,1952.5,1952.1,0.0011]
[1772206285459,1.83828507,1952.2,1951.9,0.0011]
[1772206285674,1.201,1952.5,1951.9,0.0011]
[1772206285675,1.83828507,1952.4,1951.9,0.0011]
[1772206286265,2.80895163,1952.4,1951.8,0.0011]
[1772206286571,1.2805409,1952.3,1951.8,0.0011]
[1772206287087,2.4815409,1952.3,1951.8,0.0011]
[1772206288379,2.4815409,1952.3,1952.0,0.0011]
[1772206288675,2.4815409,1952.3,1951.8,0.0011]
[1772206288676,1.83828507,1952.1,1951.8,0.0011]
[1772206288881,1.83828507,1952.1,1951.4,1.28109481]
[1772206289075,1.83828507,1952.1,1951.9,0.0011]
[1772206289401,1.83828507,1952.1,1951.7,0.0011]
[1772206290672,1.83828507,1951.9,1951.3,1.13955512]
[1772206290881,3.04228507,1951.9,1951.3,1.13955512]
[1772206292050,3.04228507,1951.9,1951.3,2.42074577]
[1772206292249,1.204,1951.9,1951.3,2.42074577]
[1772206292680,1.28086894,1951.8,1951.3,1.13955512]